bitfinex/quotes_SOLUSD_20251124
["timestamp","ask_amount","ask_price","bid_price","bid_amount"]
[1763964132492,0.13798791,133.04,133.02,0.1]
[1763964135521,23.07045037,133.03,132.96,0.1]
[1763964135696,22.65045037,132.98,132.96,0.1]
[1763964135897,4.52949037,132.98,132.96,0.1]
[1763964136208,18.12096,132.97,132.96,0.1]
[1763964136514,22.97045037,132.97,132.96,0.1]
[1763964136718,24.97045036,132.97,132.96,0.1]
[1763964139621,25.1291363,132.97,132.96,0.1]
[1763964139926,23.12913631,132.97,132.96,0.1]
[1763964140125,23.12913631,132.97,132.94,0.03]
[1763964140304,22.65045037,132.95,132.94,0.03]
[1763964140641,22.65045037,132.95,132.93,0.093]
[1763964140804,4.84949037,132.94,132.93,0.093]
[1763964140999,18.12096,132.95,132.93,0.783]
[1763964141218,4.68817631,132.97,132.93,0.783]
[1763964141424,5.00817631,132.97,132.93,0.783]
[1763964141813,4.68817631,132.97,132.93,0.783]
[1763964142021,0.15868594,132.97,132.93,0.783]
[1763964144436,0.15868594,132.97,132.93,8.3055851]
[1763964144657,0.15868594,132.97,132.94,0.69]
[1763964149532,0.15868594,132.97,132.94,5.21949037]
[1763964149727,0.15868594,132.97,132.95,0.69]
[1763964150332,0.15868594,132.97,132.93,0.093]
[1763964150534,5.94823797,132.97,132.93,0.783]
[1763964150952,4.52949037,132.96,132.93,0.783]
[1763964151132,5.46969345,132.95,132.93,0.093]
[1763964151652,4.52949037,132.94,132.93,0.093]
[1763964153048,0.94020308,132.95,132.93,0.783]
[1763964153237,0.32,132.94,132.93,0.093]
[1763964153425,4.84949037,132.94,132.93,0.093]
[1763964156253,8.78969345,132.95,132.93,0.093]
[1763964159537,0.13956578,132.94,132.93,0.093]
[1763964159739,0.13956578,132.94,132.93,0.783]
[1763964161758,0.13956578,132.94,132.93,0.093]
[1763964162463,4.66905615,132.94,132.93,0.093]
[1763964163461,0.13956578,132.94,132.93,0.093]
[1763964163866,4.66905615,132.94,132.93,0.093]
[1763964164359,0.13956578,132.94,132.93,0.093]
[1763964164547,0.13956578,132.94,132.93,0.813]
[1763964174951,4.98905615,132.94,132.93,0.093]
[1763964175964,0.13956578,132.94,132.93,0.813]
[1763964176470,4.98905615,132.94,132.93,0.093]
[1763964176650,3.36427509,132.94,132.93,0.093]
[1763964176849,3.04427509,132.94,132.93,0.093]
[1763964177641,0.13956578,132.94,132.93,0.093]
[1763964177847,3.04427509,132.94,132.93,0.093]
[1763964178066,3.36427509,132.94,132.93,0.093]
[1763964178450,3.04427509,132.94,132.93,0.093]
[1763964179544,3.05278939,132.94,132.93,0.093]
[1763964180556,3.37278939,132.94,132.93,0.093]
[1763964181070,3.05278939,132.94,132.93,0.093]
[1763964184775,3.37278939,132.94,132.93,0.093]
[1763964186342,3.05278939,132.94,132.93,0.093]
[1763964186546,3.37278939,132.94,132.93,0.093]
[1763964188248,3.05278939,132.94,132.93,0.093]
[1763964189276,6.37278939,132.94,132.93,0.093]
[1763964189775,3.46808008,132.94,132.93,0.093]
[1763964189972,0.14808008,132.94,132.93,0.813]
[1763964192059,0.14127454,132.95,132.93,21.83866931]
[1763964192381,0.14837268,132.96,132.94,2.90470931]
[1763964192675,0.15030905,132.97,132.95,2.90470931]
[1763964192975,0.15030905,132.97,132.95,3.62470931]
[1763964193203,0.15030905,132.97,132.96,0.72]
[1763964195779,0.15030905,132.97,132.93,65.09770931]
[1763964195959,0.15030905,132.97,132.95,2.90470931]
[1763964196166,0.15030905,132.97,132.94,3.57470931]
[1763964196680,0.15030905,132.97,132.95,0.67]
[1763964197975,0.15030905,132.97,132.96,6.22470931]
[1763964198174,0.15030905,132.97,132.96,6.89470931]
[1763964198978,0.15030905,132.97,132.96,0.67]
[1763964199572,0.13867703,132.97,132.96,11.09570653]
[1763964200973,0.13867703,132.97,132.96,3.57470931]
[1763964201270,0.13867703,132.97,132.96,6.89470931]
[1763964204092,0.13867703,132.97,132.96,3.57470931]
[1763964204771,0.13867703,132.97,132.96,0.67]
[1763964205292,0.13867703,132.97,132.96,3.57470931]
[1763964206665,0.13867703,132.97,132.96,0.67]
[1763964208297,0.13867703,132.97,132.94,3.57470931]
[1763964208479,0.13867703,132.97,132.94,6.89470931]
[1763964208681,0.13867703,132.97,132.95,0.67]
[1763964208880,0.13867703,132.97,132.95,3.57470931]
[1763964209594,0.13867703,132.97,132.96,0.67]
[1763964212913,0.13867703,132.97,132.96,3.57470931]
[1763964213381,0.13867703,132.97,132.96,0.67]
[1763964214000,0.13867703,132.97,132.96,3.57470931]
[1763964214210,0.13867703,132.97,132.96,0.67]
[1763964214573,0.13867703,132.97,132.96,3.57470931]
[1763964216198,0.85867703,132.97,132.93,62.863]
[1763964216396,0.85867703,132.97,132.93,0.093]
[1763964216696,0.85867703,132.97,132.93,0.763]
[1763964216998,3.76338634,132.97,132.93,0.763]
[1763964217170,0.85867703,132.97,132.93,0.763]
[1763964217898,0.13867703,132.97,132.93,3.66770931]
[1763964218210,0.85867703,132.97,132.93,3.66770931]
[1763964218503,0.85867703,132.97,132.94,0.67]
[1763964219006,0.13867703,132.97,132.94,3.57470931]
[1763964219175,0.13867703,132.97,132.95,3.57470931]
[1763964219375,19.78080962,133.0,132.95,3.57470931]
[1763964219578,0.13903148,132.97,132.96,0.67]
[1763964227792,0.13903148,132.97,132.95,3.32]
[1763964228312,0.13903148,132.97,132.95,3.98]
[1763964228787,0.83903148,132.97,132.93,66.173]
[1763964229106,18.95999148,132.97,132.93,4.073]
[1763964229504,18.95999148,132.97,132.94,0.66]
[1763964229809,3.60470931,132.96,132.93,0.093]
[1763964230202,0.7,132.95,132.93,0.093]
[1763964230608,3.60470931,132.95,132.93,0.093]
[1763964231506,3.60470931,132.94,132.93,0.093]
[1763964235291,25.04566931,132.94,132.93,0.093]
[1763964236696,26.68126193,132.94,132.93,0.093]
[1763964238596,27.62153573,132.94,132.93,0.093]
[1763964238795,22.3812338,132.94,132.93,0.093]
[1763964239094,26.68126193,132.94,132.93,0.093]
[1763964239525,26.8359754,132.94,132.93,0.093]
[1763964239821,28.83597539,132.94,132.9,0.1]
[1763964240023,22.66126193,132.91,132.9,0.1]
[1763964240405,23.33126193,132.91,132.9,0.1]
[1763964240810,22.66126193,132.91,132.9,0.1]
[1763964241519,5.21030193,132.91,132.9,0.1]
[1763964241727,5.48071721,132.92,132.9,0.1]
[1763964241891,18.12096,132.91,132.9,0.76]
[1763964242096,23.33126193,132.91,132.9,0.1]
[1763964242506,26.65126193,132.91,132.9,0.1]
[1763964244008,3.32,132.91,132.9,0.1]
[1763964244219,4.26048604,132.91,132.9,0.1]
[1763964244427,23.05144604,132.91,132.9,0.1]
[1763964244595,27.59174797,132.91,132.9,0.1]
[1763964246228,4.26048604,132.91,132.9,0.1]
[1763964246430,3.32,132.91,132.9,0.1]
[1763964247134,7.86030193,132.91,132.9,0.1]
[1763964247430,8.53030193,132.91,132.9,0.1]
[1763964247734,7.86030193,132.91,132.9,0.1]
[1763964252132,8.53030193,132.91,132.9,0.1]
[1763964253257,9.47078797,132.91,132.9,0.1]
[1763964254231,8.53030193,132.91,132.9,0.1]
[1763964254744,3.32,132.91,132.9,0.76]
[1763964254921,4.26048604,132.91,132.9,0.76]
[1763964255244,4.54030193,132.91,132.9,0.1]
[1763964255408,8.80071721,132.92,132.9,0.1]
[1763964255824,8.80071721,132.92,132.9,0.78]
[1763964256441,8.80071721,132.92,132.9,0.1]
[1763964256643,4.54030193,132.91,132.9,0.1]
[1763964257570,5.21030193,132.91,132.9,0.1]
[1763964257733,23.33126193,132.91,132.9,0.1]
[1763964258366,26.34910492,132.91,132.9,0.1]
[1763964259158,28.34910491,132.91,132.9,0.1]
[1763964259656,28.48822661,132.91,132.9,0.1]
[1763964259962,1.99999999,132.9,132.88,0.1]
[1763964260126,9.47092951,132.89,132.88,0.1]
[1763964261358,29.5918895,132.89,132.88,0.1]
[1763964262429,11.4709295,132.89,132.88,0.1]
[1763964262630,16.01123143,132.89,132.88,0.1]
[1763964263432,18.12096,132.86,132.82,0.1]
[1763964263629,4.54030193,132.83,132.82,0.1]
[1763964263854,6.54030192,132.83,132.82,0.1]
[1763964264052,11.75060385,132.83,132.82,0.1]
[1763964265354,11.75060385,132.83,132.79,0.1]
[1763964265355,18.12096,132.8,132.79,0.1]
[1763964265559,25.98126193,132.8,132.79,0.1]
[1763964265834,26.65126193,132.8,132.79,0.1]
[1763964266252,31.19156386,132.8,132.7,4.54030193]
[1763964266573,4.54030193,132.76,132.71,5.22030193]
[1763964266751,7.88030193,132.76,132.71,5.22030193]
[1763964267068,7.88030193,132.76,132.72,0.68]
[1763964268157,3.34,132.76,132.72,0.68]
[1763964269971,4.54030193,132.75,132.72,0.68]
[1763964270462,7.88030193,132.76,132.72,0.68]
[1763964270845,3.34,132.76,132.72,0.68]
[1763964271171,4.54030193,132.78,132.72,5.22030193]
[1763964271645,4.54030193,132.78,132.73,0.68]
[1763964272058,4.54030193,132.79,132.73,5.22030193]
[1763964272256,8.82156699,132.8,132.75,4.54030193]
[1763964272641,8.82156699,132.8,132.76,0.68]
[1763964274467,4.54030193,132.79,132.76,0.68]
[1763964274641,5.48170876,132.78,132.74,0.68]
[1763964274841,0.94140683,132.78,132.74,0.68]
[1763964275074,4.54030193,132.76,132.74,0.68]
[1763964275266,7.88030193,132.76,132.73,0.68]
[1763964275460,7.88030193,132.76,132.67,186.04345489]
[1763964275461,4.54030193,132.74,132.71,0.68]
[1763964276475,4.54030193,132.75,132.71,0.68]
[1763964277271,4.54030193,132.74,132.71,0.68]
[1763964279466,22.66126193,132.74,132.71,0.68]
[1763964279667,0.15486972,132.72,132.71,0.68]
[1763964286181,4.69517165,132.72,132.69,0.66]
[1763964286894,4.54030193,132.71,132.67,0.66]
[1763964288263,4.54030193,132.69,132.63,4.54030193]
[1763964288467,4.54030193,132.69,132.66,0.66]
[1763964288778,5.21030193,132.69,132.64,0.66]
[1763964289780,4.54030193,132.68,132.64,0.66]
[1763964291374,18.12096,132.67,132.64,0.66]
[1763964291963,0.15486972,132.72,132.64,0.66]
[1763964292163,4.54030193,132.7,132.64,5.20030193]
[1763964292582,4.54030193,132.69,132.65,0.66]
[1763964292888,18.12096,132.68,132.65,0.66]
[1763964294180,18.79096,132.68,132.6,18.12096]
[1763964294382,22.66126193,132.68,132.62,4.54030193]
[1763964294676,22.66126193,132.68,132.63,0.66]
[1763964295363,18.12096,132.68,132.63,5.20030193]
[1763964295581,18.12096,132.68,132.64,4.54030193]
[1763964295861,23.6032363,132.7,132.64,5.20030193]
[1763964296072,18.12096,132.69,132.65,0.66]
[1763964296470,0.94197437,132.7,132.65,8.19855227]
[1763964296681,0.94197437,132.7,132.65,0.66]
[1763964296682,5.4822763,132.7,132.65,0.66]
[1763964296886,5.4822763,132.7,132.66,0.66]
[1763964297260,4.54030193,132.69,132.66,0.66]
[1763964297465,0.94211637,132.68,132.66,0.66]
[1763964298795,22.64885513,132.68,132.64,0.66]
[1763964298971,21.97885513,132.68,132.64,0.66]
[1763964299600,0.13993385,132.65,132.64,0.66]
[1763964300764,0.13993385,132.65,132.59,2.91577876]
[1763964300964,3.05571261,132.65,132.6,0.66]
[1763964301871,0.13993385,132.65,132.6,3.57577876]
[1763964302075,0.13993385,132.65,132.61,2.91577876]
[1763964302301,0.13993385,132.65,132.62,0.66]
[1763964302480,0.13993385,132.65,132.62,18.78096]
[1763964303195,0.13993385,132.65,132.63,0.66]
[1763964312792,0.13993385,132.65,132.63,18.78096]
[1763964313111,0.13993385,132.65,132.64,0.66]
[1763964313282,1.08226328,132.65,132.61,0.66]
[1763964313481,4.66804204,132.65,132.61,0.66]
[1763964314018,0.67,132.64,132.61,0.66]
[1763964314314,2.91577876,132.63,132.6,80.88096]
[1763964314683,2.91577876,132.63,132.6,80.22096]
[1763964314894,2.91577876,132.63,132.6,80.88096]
[1763964315178,2.91577876,132.63,132.6,18.12096]
[1763964315377,2.91577876,132.63,132.58,0.1]
[1763964315378,2.91577876,132.61,132.58,0.76]
[1763964315602,2.91577876,132.61,132.58,0.1]
[1763964315812,3.58577876,132.61,132.58,0.81]
[1763964315991,2.91577876,132.6,132.58,0.1]
[1763964316379,0.67,132.61,132.58,0.1]
[1763964316585,2.91577876,132.6,132.58,0.81]
[1763964317017,2.91577876,132.6,132.58,0.1]
[1763964318319,2.91577876,132.59,132.58,0.1]
[1763964319089,3.02446032,132.62,132.58,0.81]
[1763964319385,3.34,132.63,132.58,0.81]
[1763964319590,0.14359204,132.59,132.58,0.81]
[1763964323489,0.14359204,132.59,132.58,0.1]
[1763964323692,0.14359204,132.59,132.58,0.81]
[1763964324106,0.14359204,132.59,132.58,0.1]
[1763964324304,0.81359204,132.59,132.58,0.1]
[1763964324512,3.7293708,132.59,132.58,0.1]
[1763964325119,3.0593708,132.59,132.58,0.1]
[1763964325315,3.7293708,132.59,132.58,0.1]
[1763964328626,21.8503308,132.59,132.58,0.1]
[1763964329127,5.72937079,132.59,132.58,0.1]
[1763964329302,23.85033079,132.59,132.58,0.1]
[1763964329625,27.19033079,132.59,132.58,0.1]
[1763964330839,30.21570612,132.59,132.58,0.1]
[1763964330995,2.91577876,132.54,132.53,0.1]
[1763964331423,6.25577876,132.55,132.53,0.1]
[1763964331630,2.91577876,132.54,132.53,0.1]
[1763964333247,3.34,132.55,132.53,0.1]
[1763964333430,2.91577876,132.54,132.53,0.1]
[1763964336756,3.58577876,132.54,132.53,0.1]
[1763964337258,6.61229864,132.54,132.49,0.1756811]
[1763964337557,2.91577876,132.5,132.49,0.1756811]
[1763964337758,6.25577876,132.5,132.49,0.1756811]
[1763964338256,6.92577876,132.5,132.49,0.1756811]
[1763964339048,9.95298578,132.5,132.49,0.1756811]
[1763964339622,10.09690029,132.5,132.49,0.1756811]
[1763964340042,7.06969327,132.5,132.49,0.1756811]
[1763964340242,4.15391451,132.5,132.49,0.1756811]
[1763964340560,17.16659356,132.5,132.49,0.1756811]
[1763964341053,18.12096,132.47,132.42,0.71]
[1763964341225,2.91577876,132.44,132.42,0.71]
[1763964341652,2.91577876,132.43,132.42,0.71]
[1763964342027,2.91577876,132.43,132.4,0.71]
[1763964342222,2.91577876,132.42,132.4,0.71]
[1763964342458,18.12096,132.45,132.4,0.71]
[1763964342660,2.91577876,132.41,132.39,0.1]
[1763964342962,6.25577876,132.4,132.39,0.1]
[1763964343330,29.96251751,132.4,132.39,0.1]
[1763964343849,29.96251751,132.4,132.33,0.71]
[1763964343850,2.91577876,132.35,132.33,0.71]
[1763964344664,7.63249304,132.35,132.33,0.71]
[1763964345444,7.63249304,132.34,132.33,0.71]
[1763964345639,3.34,132.36,132.33,0.71]
[1763964345952,7.63249304,132.34,132.33,0.71]
[1763964346326,7.63249304,132.34,132.27,7.56020057]
[1763964346527,3.34,132.36,132.29,7.63249304]
[1763964346843,7.63249304,132.35,132.29,7.63249304]
[1763964347038,7.63249304,132.35,132.3,0.71]
[1763964347246,7.63249304,132.34,132.3,0.71]
[1763964347441,7.63249304,132.4,132.3,0.71]
[1763964347442,0.94382361,132.44,132.33,7.63249304]
[1763964347668,7.63249304,132.46,132.4,7.63249304]
[1763964347973,7.63249304,132.46,132.36,18.12096]
[1763964347974,7.63249304,132.46,132.41,0.71]
[1763964348260,7.63249304,132.43,132.34,21.65286741]
[1763964348466,7.63249304,132.41,132.38,8.97249304]
[1763964348773,1.60389488,132.43,132.38,0.71]
[1763964349066,7.63249304,132.4,132.38,0.71]
[1763964349733,7.63249304,132.39,132.36,0.71]
[1763964349935,7.63249304,132.38,132.36,0.71]
[1763964350169,7.63249304,132.37,132.31,19.77485488]
[1763964350370,7.63249304,132.37,132.23,50.0]
[1763964350371,7.63249304,132.32,132.23,50.0]
[1763964350531,21.48096,132.31,132.15,7.63249304]
[1763964350731,1.99999999,132.34,132.22,18.78096]
[1763964350732,18.12096,132.26,132.22,18.78096]
[1763964350930,15.26498608,132.23,132.06,17.47010208]
[1763964351149,7.63249304,132.15,132.09,18.12096]
[1763964351370,7.63249304,132.14,132.09,18.12096]
[1763964351541,7.63249304,132.14,131.99,72.80406075]
[1763964351542,18.12096,132.16,132.06,3.94399364]
[1763964351736,7.63249304,132.15,132.09,7.63249304]
[1763964351929,7.63249304,132.14,132.06,3.94399364]
[1763964352349,7.63249304,132.12,132.06,3.94399364]
[1763964352665,20.12095999,132.16,132.06,11.57648668]
[1763964352964,20.12095999,132.16,132.06,0.72]
[1763964352965,7.63249304,132.09,132.06,0.72]
[1763964353259,7.63249304,132.11,132.06,0.72]
[1763964353461,3.38,132.13,132.07,0.72]
[1763964353664,7.63249304,132.12,132.07,0.72]
[1763964353971,3.38,132.13,132.07,0.72]
[1763964354129,7.63249304,132.11,132.07,0.72]
[1763964354334,7.63249304,132.08,132.04,0.72]
[1763964354555,7.63249304,132.05,132.0,0.72]
[1763964354776,7.63249304,132.01,131.97,0.72]
[1763964354972,3.38,132.02,131.97,0.72]
[1763964355295,7.63249304,132.01,131.97,0.72]
[1763964355483,7.63249304,132.03,131.97,8.35249304]
[1763964355686,11.01249304,132.03,131.97,8.35249304]
[1763964355866,3.38,132.04,131.98,0.72]
[1763964356179,1.99999999,132.14,131.98,0.72]
[1763964356381,7.63249304,132.03,131.98,0.72]
[1763964356577,7.63249304,132.02,131.98,0.72]
[1763964356882,3.38,132.04,131.98,0.72]
[1763964357084,3.38,132.04,131.96,0.07598507]
[1763964357085,18.12096,132.02,131.96,0.07598507]
[1763964357272,7.63249304,131.98,131.96,0.07598507]
[1763964357463,7.63249304,131.99,131.96,0.07598507]
[1763964357665,7.63249304,132.0,131.96,0.07598507]
[1763964357858,25.75345304,132.01,131.96,0.79598507]
[1763964358267,7.63249304,132.01,131.96,0.79598507]
[1763964358793,3.4,132.02,131.96,0.79598507]
[1763964358995,11.03249304,132.02,131.96,0.79598507]
[1763964359301,3.4,132.02,131.97,7.63249304]
[1763964359665,0.15435165,131.97,131.96,0.07598507]
[1763964360072,0.15435165,131.97,131.96,0.79598507]
[1763964360275,0.15435165,131.97,131.96,0.07598507]
[1763964360603,11.91467265,131.97,131.96,0.07598507]
[1763964360900,34.11563265,131.97,131.96,0.07598507]
[1763964361471,0.15435165,131.97,131.96,0.79598507]
[1763964361704,0.15435165,131.97,131.96,0.07598507]
[1763964362874,11.91467265,131.97,131.96,0.07598507]
[1763964363220,75.00619697,131.97,131.83,48.91]
[1763964363373,18.12096,131.86,131.84,11.760321]
[1763964363575,18.12096,131.82,131.75,0.72]
[1763964363795,11.760321,131.76,131.67,0.72]
[1763964364016,3.42,131.76,131.68,11.760321]
[1763964364292,21.54096,131.76,131.69,0.47352454]
[1763964364492,15.180321,131.76,131.63,7.59699184]
[1763964364806,3.42,131.76,131.68,11.760321]
[1763964365107,3.42,131.76,131.62,26.59168794]
[1763964365313,1.99999999,131.73,131.61,50.0]
[1763964365485,3.42,131.76,131.61,50.0]
[1763964365683,3.42,131.76,131.6,22.8345258]
[1763964365945,11.760321,131.7,131.59,3.44]
[1763964366217,22.22096,131.76,131.59,61.03933211]
[1763964366388,18.12096,131.75,131.66,11.760321]
[1763964366710,18.12096,131.75,131.67,12.480321]
[1763964366886,3.44,131.76,131.68,0.72]
[1763964367091,11.760321,131.75,131.69,11.760321]
[1763964367294,0.68,131.82,131.71,11.760321]
[1763964367491,3.44,131.78,131.72,12.480321]
[1763964367694,3.44,131.81,131.72,0.72]
[1763964367878,11.760321,131.76,131.66,18.98756556]
[1763964368079,11.760321,131.74,131.67,0.72]
[1763964368315,18.12096,131.77,131.67,12.480321]
[1763964368479,11.760321,131.69,131.63,0.72]
[1763964368814,11.760321,131.67,131.59,0.72]
[1763964369017,11.760321,131.63,131.58,0.72]
[1763964369207,11.760321,131.62,131.56,23.56582873]
[1763964369521,18.12096,131.68,131.56,22.84582873]
[1763964369522,21.56096,131.64,131.56,22.84582873]
[1763964369759,3.44,131.7,131.58,18.12096]
[1763964369964,3.44,131.7,131.59,0.72]
[1763964370124,11.760321,131.7,131.59,0.72]
[1763964370325,11.760321,131.7,131.64,11.760321]
[1763964370645,11.760321,131.69,131.64,11.760321]
[1763964370961,0.68,131.79,131.68,11.760321]
[1763964371140,11.760321,131.76,131.7,11.760321]
[1763964371463,11.760321,131.77,131.71,11.760321]
[1763964371626,4.12,131.8,131.72,11.760321]
[1763964371823,11.760321,131.78,131.73,12.480321]
[1763964372054,11.760321,131.78,131.73,0.72]
[1763964372364,11.760321,131.79,131.74,0.72]
[1763964372662,0.94819085,131.83,131.75,13.6758038]
[1763964372821,0.68,131.81,131.72,14.3958038]
[1763964373026,0.94840667,131.8,131.72,0.72]
[1763964373225,0.94840667,131.8,131.73,0.72]
[1763964373430,13.6758038,131.77,131.71,0.72]
[1763964373642,1.62840667,131.8,131.72,0.72]
[1763964373853,0.94840667,131.8,131.74,13.6758038]
[1763964374030,13.6758038,131.77,131.72,0.72]
[1763964374236,13.6758038,131.76,131.7,12.480321]
[1763964374438,13.6758038,131.74,131.71,0.72]
[1763964374750,13.6758038,131.73,131.69,0.72]
[1763964375139,13.6758038,131.73,131.67,21.99050154]
[1763964375352,13.6758038,131.71,131.66,13.6758038]
[1763964375553,13.6758038,131.71,131.66,0.72]
[1763964375751,13.6758038,131.7,131.67,0.67]
[1763964376450,19.7497266,131.75,131.67,0.67]
[1763964376658,13.6758038,131.7,131.67,0.67]
[1763964376842,0.9487666,131.75,131.67,14.3458038]
[1763964377042,13.6758038,131.75,131.69,13.6758038]
[1763964377264,14.62464242,131.74,131.7,0.67]
[1763964377577,50.15435165,131.97,131.71,13.6758038]
[1763964377578,13.6758038,131.77,131.71,13.6758038]
[1763964377979,13.6758038,131.77,131.72,14.3458038]
[1763964378156,0.94797512,131.86,131.76,13.6758038]
[1763964378362,13.6758038,131.81,131.76,13.6758038]
[1763964378558,0.94811893,131.84,131.77,14.3458038]
[1763964378876,0.94811893,131.84,131.78,13.6758038]
[1763964379048,0.94790323,131.87,131.79,14.3458038]
[1763964379244,13.6758038,131.85,131.8,13.6758038]
[1763964379559,0.14917711,131.81,131.8,0.67]
[1763964379870,0.14917711,131.81,131.79,13.6758038]
[1763964380260,0.14917711,131.81,131.8,0.67]
[1763964380456,0.14917711,131.81,131.8,14.3458038]
[1763964380779,0.14917711,131.81,131.8,0.67]
[1763964381665,0.14917711,131.81,131.77,0.67]
[1763964381874,13.82498091,131.81,131.78,0.67]
[1763964382050,0.14917711,131.81,131.78,0.67]
[1763964382562,0.14917711,131.81,131.75,18.12096]
[1763964382563,14.77331563,131.81,131.76,0.67]
[1763964382767,13.6758038,131.8,131.76,0.67]
[1763964383582,13.6758038,131.79,131.76,0.67]
[1763964384087,0.14917711,131.81,131.76,0.67]
[1763964384256,13.6758038,131.79,131.76,0.67]
[1763964384457,13.6758038,131.78,131.74,0.67]
[1763964384686,0.94862259,131.77,131.74,0.67]
[1763964384959,13.6758038,131.75,131.71,0.67]
[1763964385578,1.65847864,131.79,131.71,0.67]
[1763964385884,0.71,131.78,131.71,0.67]
[1763964386061,0.71,131.78,131.68,0.67]
[1763964386062,13.6758038,131.73,131.68,0.67]
[1763964386375,13.6758038,131.73,131.65,7.59532257]
[1763964386376,13.6758038,131.73,131.69,0.67]
[1763964386560,13.6758038,131.71,131.66,0.67]
[1763964386750,0.71,131.76,131.67,13.6758038]
[1763964387171,13.6758038,131.73,131.68,0.67]
[1763964387357,0.94862259,131.77,131.68,14.3458038]
[1763964387562,13.6758038,131.74,131.68,14.3458038]
[1763964387757,0.94862259,131.77,131.69,0.67]
[1763964387971,13.6758038,131.75,131.69,14.3458038]
[1763964388174,0.94862259,131.77,131.71,13.6758038]
[1763964388372,0.94862259,131.77,131.72,0.67]
[1763964388373,13.6758038,131.77,131.72,0.67]
[1763964388574,0.94840667,131.8,131.73,13.6758038]
[1763964388757,0.14917711,131.81,131.74,13.6758038]
[1763964388958,0.14917711,131.81,131.77,13.6758038]
[1763964389269,0.14917711,131.81,131.75,0.67]
[1763964389877,1.09751183,131.81,131.75,21.93586393]
[1763964390178,13.82498091,131.81,131.75,21.93586393]
[1763964390370,13.82498091,131.81,131.76,0.67]
[1763964390778,0.94840667,131.8,131.76,0.67]
[1763964391079,14.62421047,131.8,131.76,0.67]
[1763964391381,14.62421047,131.8,131.72,7.59179721]
[1763964391382,13.6758038,131.78,131.73,14.3458038]
[1763964391563,13.6758038,131.79,131.73,14.3458038]
[1763964391883,0.94855061,131.78,131.74,0.67]
[1763964392086,13.6758038,131.79,131.74,0.67]
[1763964392261,1.09751183,131.81,131.75,13.6758038]
[1763964392262,14.77331563,131.81,131.75,13.6758038]
[1763964392460,0.14917711,131.81,131.76,13.6758038]
[1763964392662,0.14917711,131.81,131.77,0.67]
[1763964392864,13.82498091,131.81,131.77,0.67]
[1763964393281,13.82498091,131.81,131.75,0.67]
[1763964393282,14.62421047,131.8,131.75,0.67]
[1763964393768,0.94840667,131.8,131.75,0.67]
[1763964394087,14.3858038,131.79,131.73,0.67]
[1763964394283,14.62435441,131.78,131.73,0.67]
[1763964394674,11.79400411,131.76,131.71,0.67]
[1763964395292,1.65855061,131.78,131.69,12.46400411]
[1763964395293,11.79400411,131.75,131.69,12.46400411]
[1763964395583,11.79400411,131.75,131.7,0.67]
[1763964396179,11.79400411,131.71,131.66,0.67]
[1763964396374,11.79400411,131.7,131.66,0.67]
[1763964396781,11.79400411,131.67,131.63,0.67]
[1763964397085,11.79400411,131.66,131.63,0.67]
[1763964397279,0.71,131.73,131.64,11.79400411]
[1763964397581,18.12096,131.74,131.67,11.79400411]
[1763964397975,11.79400411,131.75,131.69,11.79400411]
[1763964398168,11.79400411,131.72,131.68,0.67]
[1763964398369,11.79400411,131.71,131.65,12.46400411]
[1763964398683,11.79400411,131.71,131.66,0.67]
[1763964399074,11.79400411,131.74,131.68,11.79400411]
[1763964399280,0.94862259,131.77,131.7,11.79400411]
[1763964399487,11.79400411,131.73,131.66,0.67]
[1763964399672,0.14180515,131.69,131.67,11.79400411]
[1763964400168,0.14180515,131.69,131.68,12.46400411]
[1763964400788,0.14180515,131.69,131.68,0.67]
[1763964400974,0.14180515,131.69,131.68,12.46400411]
[1763964401375,0.14180515,131.69,131.68,0.67]
[1763964402884,0.14180515,131.69,131.68,12.46400411]